bitfinex/quotes_BTCUSD_20240723
["timestamp","ask_amount","ask_price","bid_price","bid_amount"]
[1721724461460,0.002,66999.0,66998.0,2.07413693]
[1721724461926,0.002,66999.0,66998.0,2.38665293]
[1721724462136,0.002,67009.0,67008.0,1.73509402]
[1721724462344,0.002,67009.0,67008.0,2.66625493]
[1721724462968,0.002,67009.0,67008.0,2.71625493]
[1721724463382,0.002,67009.0,67008.0,2.10838393]
[1721724463589,0.002,67009.0,67008.0,2.15838393]
[1721724463989,0.002,67009.0,67008.0,2.10838393]
[1721724464785,0.002,67009.0,67008.0,2.17138393]
[1721724465574,0.002,67009.0,67008.0,2.00718393]
[1721724466029,0.0657,67009.0,67008.0,1.61041293]
[1721724467072,0.002,67009.0,67008.0,1.61041293]
[1721724467709,0.002,67009.0,67008.0,1.63341293]
[1721724468319,0.0805,67009.0,67008.0,1.63341293]
[1721724469374,0.0805,67009.0,67008.0,0.46576493]
[1721724469535,0.1425,67009.0,67008.0,0.46798002]
[1721724469750,0.1425,67009.0,67008.0,0.76645102]
[1721724470097,0.1425,67009.0,67008.0,1.21194193]
[1721724470300,0.1425,67009.0,67008.0,0.91347093]
[1721724470502,0.1425,67009.0,67008.0,1.21194193]
[1721724470922,0.1425,67009.0,67008.0,1.23494193]
[1721724471988,0.1425,67009.0,67008.0,1.53341293]
[1721724471989,0.064,67009.0,67008.0,1.53341293]
[1721724472580,0.064,67009.0,67008.0,1.23494193]
[1721724472942,0.064,67009.0,67008.0,1.53341293]
[1721724474501,0.064,67009.0,67008.0,1.23494193]
[1721724474686,0.064,67009.0,67008.0,0.61499993]
[1721724474894,0.064,67009.0,67008.0,0.91347093]
[1721724475090,0.064,67009.0,67008.0,0.61499993]
[1721724475290,0.064,67009.0,67008.0,0.46576493]
[1721724475500,0.064,67009.0,67008.0,0.61499993]
[1721724475698,0.064,67009.0,67008.0,0.91347093]
[1721724476862,0.064,67009.0,67008.0,1.21194193]
[1721724478072,0.064,67009.0,67008.0,1.51041293]
[1721724478402,0.064,67009.0,67008.0,1.53341293]
[1721724479882,0.002,67009.0,67008.0,1.53341293]
[1721724481473,0.002,67009.0,67008.0,1.93188393]
[1721724482490,0.002,67009.0,67008.0,2.03188393]
[1721724482697,0.002,67009.0,67008.0,1.98188393]
[1721724483534,0.002,67009.0,67008.0,2.03188393]
[1721724483897,0.002,67009.0,67008.0,2.59675493]
[1721724484459,0.002,67009.0,67008.0,2.54675493]
[1721724484893,0.002,67009.0,67008.0,2.52675493]
[1721724485334,0.002,67009.0,67008.0,2.62907238]
[1721724485546,0.002,67009.0,67008.0,2.67907238]
[1721724485680,0.002,67009.0,67008.0,2.83317238]
[1721724486249,0.40084,67010.0,67009.0,2.09031002]
[1721724486450,0.22053661,67010.0,67009.0,3.24538759]
[1721724486578,0.22053661,67010.0,67009.0,3.26651738]
[1721724486798,0.00842,67014.0,67013.0,1.79174402]
[1721724487022,0.00842,67014.0,67013.0,2.44853138]
[1721724487444,0.00842,67014.0,67013.0,2.39853138]
[1721724487647,0.00842,67014.0,67013.0,1.91176493]
[1721724487851,0.00842,67014.0,67013.0,2.00073602]
[1721724488048,0.00842,67014.0,67013.0,1.70228702]
[1721724488569,0.00842,67014.0,67013.0,1.72928702]
[1721724488777,0.00842,67014.0,67013.0,1.64031593]
[1721724488932,0.00842,67014.0,67013.0,1.65431593]
[1721724489129,0.00842,67014.0,67013.0,1.67735151]
[1721724489397,0.00842,67014.0,67013.0,2.03940051]
[1721724489542,0.00842,67014.0,67013.0,2.07540051]
[1721724489744,0.00842,67014.0,67013.0,2.17786234]
[1721724489974,0.00842,67014.0,67013.0,2.20086234]
[1721724490571,0.00842,67014.0,67013.0,2.07326234]
[1721724490774,0.00842,67014.0,67013.0,2.08726234]
[1721724491013,0.00842,67014.0,67013.0,1.70035151]
[1721724491199,0.00842,67014.0,67013.0,1.78898291]
[1721724491401,0.00842,67014.0,67013.0,1.70035151]
[1721724491620,0.00842,67014.0,67013.0,1.99880051]
[1721724492393,0.00842,67014.0,67013.0,2.13712447]
[1721724492596,0.00842,67014.0,67013.0,2.08712447]
[1721724493425,0.07132,67014.0,67013.0,2.08712447]
[1721724493600,0.07132,67014.0,67013.0,1.70035151]
[1721724493829,0.15232,67014.0,67013.0,1.70035151]
[1721724494658,0.15232,67014.0,67013.0,1.68635151]
[1721724494850,0.07132,67014.0,67013.0,1.68635151]
[1721724495052,0.07132,67014.0,67013.0,1.70035151]
[1721724495426,0.07132,67014.0,67013.0,1.67235151]
[1721724495838,0.07132,67014.0,67013.0,1.70035151]
[1721724496799,0.07132,67014.0,67013.0,1.71435151]
[1721724497486,0.07132,67014.0,67013.0,2.20810051]
[1721724497487,0.00842,67014.0,67013.0,2.20810051]
[1721724497684,0.00842,67014.0,67013.0,2.34700531]
[1721724497810,0.00842,67014.0,67013.0,2.29700531]
[1721724497811,0.006927,67014.0,67013.0,2.29700531]
[1721724498012,0.006927,67014.0,67013.0,2.10170531]
[1721724498213,0.006927,67014.0,67013.0,2.15170531]
[1721724498536,0.006927,67014.0,67013.0,2.35380531]
[1721724498884,0.006927,67014.0,67013.0,2.61625431]
[1721724499001,0.006927,67014.0,67013.0,2.23180531]
[1721724499200,0.006927,67014.0,67013.0,2.08770531]
[1721724499587,0.006927,67014.0,67013.0,2.07370531]
[1721724499904,0.006927,67014.0,67013.0,2.03770531]
[1721724500156,0.0097624,67018.0,67017.0,1.39321402]
[1721724500398,0.0097624,67018.0,67017.0,2.31746393]
[1721724500639,0.0097624,67018.0,67017.0,2.56589493]
[1721724500890,0.0097624,67018.0,67017.0,2.00106393]
[1721724501384,0.0097624,67018.0,67017.0,2.05106393]
[1721724502060,0.0097624,67018.0,67017.0,2.06506393]
[1721724502494,0.0097624,67018.0,67017.0,2.07906393]
[1721724503482,0.0097624,67018.0,67017.0,1.78037095]
[1721724503684,0.0097624,67018.0,67017.0,1.66823293]
[1721724503685,0.0744624,67018.0,67017.0,1.66823293]
[1721724505116,0.0744624,67018.0,67017.0,1.69123293]
[1721724505290,0.0097624,67018.0,67017.0,1.69123293]
[1721724505491,0.0097624,67018.0,67017.0,2.07814396]
[1721724506396,0.0097624,67018.0,67017.0,2.07764352]
[1721724508001,0.0097624,67018.0,67017.0,2.42607452]
[1721724508206,0.0097624,67018.0,67017.0,2.07764352]
[1721724509292,0.0097624,67018.0,67017.0,1.98966393]
[1721724509506,0.0097624,67018.0,67017.0,2.07597868]
[1721724512406,0.0097624,67018.0,67017.0,2.07638303]
[1721724514166,0.1548624,67018.0,67017.0,1.45652103]
[1721724514371,0.1548624,67018.0,67017.0,0.82435102]
[1721724515001,0.1548624,67018.0,67017.0,0.52592002]
[1721724515430,0.1548624,67018.0,67017.0,0.37670502]
[1721724515626,0.6025024,67018.0,67017.0,0.37670502]
[1721724515828,0.6025024,67018.0,67017.0,0.36243]
[1721724515829,0.21281195,67018.0,67017.0,0.36243]
[1721724516036,0.52486484,67018.0,67017.0,0.36243]
[1721724516229,0.52486484,67018.0,67017.0,0.37143]
[1721724516230,0.73394137,67018.0,67017.0,0.37143]
[1721724516830,0.43551437,67018.0,67017.0,0.35743]
[1721724517036,0.73394137,67018.0,67017.0,0.35743]
[1721724517230,0.82330192,67018.0,67017.0,0.37143]
[1721724517457,0.43551437,67018.0,67017.0,0.36243]
[1721724517861,0.43551437,67018.0,67017.0,0.35543]
[1721724518055,0.43551437,67018.0,67017.0,0.34843]
[1721724518213,0.66245195,67018.0,67017.0,0.34843]
[1721724518424,0.21481195,67018.0,67017.0,0.49892002]
[1721724518651,0.20153945,67018.0,67017.0,0.79735102]
[1721724518874,0.1568624,67018.0,67017.0,1.09578202]
[1721724519076,0.1568624,67018.0,67017.0,1.39421302]
[1721724519282,0.1568624,67018.0,67017.0,1.54123293]
[1721724519576,0.1568624,67018.0,67017.0,1.64123293]
[1721724520167,0.1548624,67018.0,67017.0,1.64123293]
[1721724520376,0.1548624,67018.0,67017.0,1.64623293]
[1721724520545,0.1548624,67018.0,67017.0,1.64523293]
[1721724521540,0.0722624,67018.0,67017.0,1.66823293]
[1721724524443,0.0097624,67018.0,67017.0,1.66823293]
[1721724526761,0.0097624,67018.0,67017.0,1.96666393]
[1721724527180,0.0097624,67018.0,67017.0,2.01666393]
[1721724527390,0.0097624,67018.0,67017.0,2.10256372]
[1721724527880,0.0097624,67018.0,67017.0,2.35099297]
[1721724528086,0.0097624,67018.0,67017.0,2.39599297]
[1721724528738,0.0097624,67018.0,67017.0,2.35999297]
[1721724529409,0.0097624,67018.0,67017.0,2.37399297]
[1721724529555,0.0097624,67018.0,67017.0,2.42399297]
[1721724530180,1e-08,67018.0,67017.0,2.96912397]
[1721724530379,0.00842,67020.0,67019.0,0.19948602]
[1721724530600,0.00842,67020.0,67019.0,1.45066797]
[1721724530805,0.00842,67020.0,67019.0,2.34616602]
[1721724530976,0.00842,67020.0,67019.0,2.39616602]
[1721724531412,0.00842,67020.0,67019.0,2.44616602]
[1721724531812,0.00842,67020.0,67019.0,2.39616602]
[1721724532323,0.00842,67020.0,67019.0,2.46016602]
[1721724532984,0.00842,67020.0,67019.0,2.75858802]
[1721724533184,1e-06,67020.0,67019.0,3.28718802]
[1721724533765,1e-06,67020.0,67019.0,3.29627841]
[1721724534112,1e-06,67020.0,67019.0,3.31090048]
[1721724534677,1e-06,67020.0,67019.0,3.29690048]
[1721724535075,1e-06,67020.0,67019.0,3.31090048]
[1721724535684,1e-06,67020.0,67019.0,3.29690048]
[1721724536071,1e-06,67020.0,67019.0,3.31090048]
[1721724536504,0.002,67029.0,67028.0,0.10027502]
[1721724536738,0.002,67029.0,67028.0,2.70392809]
[1721724536930,0.002,67029.0,67028.0,2.71717593]
[1721724537151,0.002,67029.0,67028.0,2.79661772]
[1721724537571,0.002,67029.0,67028.0,3.09499972]
[1721724538366,0.002,67029.0,67028.0,3.05899972]
[1721724538769,0.002,67029.0,67028.0,3.04499972]
[1721724538988,0.002,67029.0,67028.0,3.09499972]
[1721724539187,0.002,67029.0,67028.0,3.10899972]
[1721724539394,0.002,67029.0,67028.0,3.09499972]
[1721724539840,0.002,67029.0,67028.0,2.89259972]
[1721724540042,0.002,67029.0,67028.0,2.81315793]
[1721724540245,0.002,67029.0,67028.0,2.89289996]
[1721724540464,0.002,67029.0,67028.0,2.90689996]
[1721724541632,0.002,67029.0,67028.0,2.85689996]
[1721724541843,0.002,67029.0,67028.0,3.23541796]
[1721724542043,0.002,67029.0,67028.0,3.18541796]
[1721724542249,0.002,67029.0,67028.0,3.23541796]
[1721724542674,0.002,67029.0,67028.0,3.15567593]
[1721724543172,0.002,67029.0,67028.0,3.15526841]
[1721724543174,0.002,67029.0,67028.0,2.75688641]
[1721724543431,0.002,67029.0,67028.0,2.65339393]
[1721724543858,0.002,67029.0,67028.0,2.25501193]
[1721724543859,0.1437,67029.0,67028.0,2.25501193]
[1721724544355,0.1437,67029.0,67028.0,0.92124793]
[1721724544601,0.1437,67029.0,67028.0,0.45967493]
[1721724544842,0.1437,67029.0,67028.0,0.90724793]
[1721724545080,0.1437,67029.0,67028.0,0.92124793]
[1721724545368,0.1437,67029.0,67028.0,0.62286593]
[1721724545606,0.1437,67029.0,67028.0,0.45967493]
[1721724545850,0.292889,67029.0,67028.0,0.45967493]
[1721724546105,0.1437,67029.0,67028.0,0.62286593]
[1721724546330,0.1437,67029.0,67028.0,0.45967493]
[1721724546759,0.1437,67029.0,67028.0,0.46867493]
[1721724546968,0.1437,67029.0,67028.0,0.30765502]
[1721724547175,0.292889,67029.0,67028.0,0.30765502]
[1721724547381,0.591267,67029.0,67028.0,0.30738]
[1721724547608,0.889645,67029.0,67028.0,0.30738]
[1721724547807,0.1437,67029.0,67028.0,0.32165502]
[1721724548073,0.1437,67029.0,67028.0,0.46867493]
[1721724548281,0.1437,67029.0,67028.0,1.21462993]
[1721724548492,0.1437,67029.0,67028.0,0.60386593]
[1721724548705,0.1437,67029.0,67028.0,0.90024793]
[1721724548929,0.1437,67029.0,67028.0,1.19862993]
[1721724549157,0.1437,67029.0,67028.0,1.20062993]
[1721724549464,0.1437,67029.0,67028.0,1.49901193]
[1721724549674,0.1437,67029.0,67028.0,1.52201193]
[1721724549675,0.002,67029.0,67028.0,1.52201193]
[1721724549883,0.002,67029.0,67028.0,2.02039393]
[1721724550089,0.002,67029.0,67028.0,1.97039393]
[1721724550299,0.002,67029.0,67028.0,2.07039393]
[1721724550508,0.002,67029.0,67028.0,2.50577593]
[1721724550718,0.002,67029.0,67028.0,2.58564215]
[1721724550893,0.002,67029.0,67028.0,2.59964215]
[1721724551463,0.00842,67036.0,67035.0,1.09450302]
[1721724551664,0.00842,67036.0,67035.0,2.04109015]
[1721724552298,0.00842,67036.0,67035.0,1.96122393]
[1721724552503,0.00842,67036.0,67035.0,2.04126698]
[1721724552907,0.00842,67036.0,67035.0,2.05526698]
[1721724553530,0.00842,67036.0,67035.0,2.06926698]
[1721724553763,0.00842,67036.0,67035.0,2.11926698]
[1721724553997,0.00842,67036.0,67035.0,2.04126698]
[1721724554237,0.00842,67036.0,67035.0,2.00526698]
[1721724554482,0.00842,67036.0,67035.0,1.92522393]
[1721724555188,0.00842,67036.0,67035.0,1.92024638]
[1721724556220,0.00842,67036.0,67035.0,0.54564493]
[1721724556462,0.00842,67036.0,67035.0,0.99317093]
[1721724556695,0.00842,67036.0,67035.0,0.72281993]
[1721724556967,0.07502,67036.0,67035.0,0.72281993]
[1721724557206,0.07502,67036.0,67035.0,0.99317093]
[1721724557437,0.07502,67036.0,67035.0,1.29852193]
[1721724557681,0.07502,67036.0,67035.0,1.30252193]
[1721724557935,0.07502,67036.0,67035.0,1.30552193]
[1721724558187,0.07502,67036.0,67035.0,1.31452193]
[1721724558411,0.07502,67036.0,67035.0,1.62187293]
[1721724559398,0.07502,67036.0,67035.0,1.32352193]
[1721724559645,0.07502,67036.0,67035.0,1.31452193]
[1721724559908,0.07502,67036.0,67035.0,1.32452193]
[1721724560313,0.07502,67036.0,67035.0,1.33052193]
[1721724563073,0.07502,67036.0,67035.0,0.31462502]
[1721724563074,0.29768242,67036.0,67035.0,0.31462502]
[1721724563315,0.14850942,67036.0,67035.0,0.31462502]
[1721724563526,0.14850942,67036.0,67035.0,0.46380002]
[1721724564800,0.14850942,67036.0,67035.0,0.31462502]
[1721724565731,0.07502,67036.0,67035.0,0.90917093]
[1721724565950,0.07502,67036.0,67035.0,0.31462502]
[1721724566153,0.224193,67036.0,67035.0,0.31462502]
[1721724566449,0.15702,67036.0,67035.0,0.31462502]
[1721724568638,0.306193,67036.0,67035.0,0.31462502]
[1721724568904,0.64919111,67036.0,67035.0,0.31462502]
[1721724569120,0.96078484,67036.0,67035.0,0.31462502]
[1721724569328,1.05008707,67036.0,67035.0,0.31462502]
[1721724569493,0.75174007,67036.0,67035.0,0.31462502]
[1721724570053,1.05008707,67036.0,67035.0,0.31435]
[1721724570279,0.75174007,67036.0,67035.0,0.31462502]
[1721724570520,0.36409084,67036.0,67035.0,0.31462502]
[1721724570735,0.306193,67036.0,67035.0,0.31462502]
[1721724570975,0.15702,67036.0,67035.0,0.31462502]
[1721724571175,0.2240162,67036.0,67035.0,0.31462502]
[1721724571393,0.2240212,67036.0,67035.0,0.31462502]
[1721724571601,0.60454,67036.0,67035.0,0.31462502]
[1721724571809,0.902887,67036.0,67035.0,0.31435]
[1721724572228,0.60454,67036.0,67035.0,0.31462502]
[1721724572445,0.69387118,67036.0,67035.0,0.31462502]
[1721724573071,0.39552418,67036.0,67035.0,0.31462502]
[1721724573277,0.306193,67036.0,67035.0,0.31462502]
[1721724573481,0.69387118,67036.0,67035.0,0.31462502]
[1721724573747,0.69387118,67036.0,67035.0,0.31435]
[1721724573748,1.3484718,67036.0,67035.0,0.31435]
[1721724573959,1.36385856,67036.0,67035.0,0.31435]
[1721724574558,1.36385856,67036.0,67035.0,0.30835]
[1721724574811,1.36385856,67036.0,67035.0,0.29835]
[1721724575020,1.36385856,67036.0,67035.0,0.30935]
[1721724575230,1.36385856,67036.0,67035.0,0.30635]
[1721724576175,1.36385856,67036.0,67035.0,0.29835]
[1721724576603,1.06551156,67036.0,67035.0,0.30135]
[1721724576862,0.46881756,67036.0,67035.0,0.30162502]
[1721724577065,0.66244662,67036.0,67035.0,0.30162502]
[1721724577403,0.77409122,67036.0,67035.0,0.30162502]
[1721724577605,0.96079362,67036.0,67035.0,0.30135]
[1721724579754,1.25914062,67036.0,67035.0,0.30135]
[1721724580240,1.36670338,67036.0,67035.0,0.30135]
[1721724580957,0.96079362,67036.0,67035.0,0.30135]
[1721724581180,1.07241256,67036.0,67035.0,0.30135]
[1721724581359,1.25914062,67036.0,67035.0,0.30135]
[1721724582139,1.47967919,67036.0,67035.0,0.30135]
[1721724582400,1.36806031,67036.0,67035.0,0.30135]
[1721724583151,1.25914062,67036.0,67035.0,0.30135]
[1721724583487,1.3680603,67036.0,67035.0,0.30135]
[1721724586154,0.4730193,67036.0,67035.0,0.30135]
[1721724586350,1.18110482,67036.0,67035.0,0.30135]
[1721724586555,1.47945182,67036.0,67035.0,0.30135]
[1721724586764,1.06945753,67036.0,67035.0,0.30135]
[1721724589532,1.06961413,67036.0,67035.0,0.30135]
[1721724592464,0.96079362,67036.0,67035.0,0.30135]
[1721724592662,1.06973122,67036.0,67035.0,0.30135]
[1721724593775,1.36807822,67036.0,67035.0,0.30135]
[1721724594140,2.41861232,67036.0,67035.0,0.30135]
[1721724594349,2.1040048,67036.0,67035.0,0.30135]
[1721724595230,2.1040048,67036.0,67035.0,0.30235]
[1721724595431,2.1040048,67036.0,67035.0,0.29835]
[1721724595545,2.1050048,67036.0,67035.0,0.29835]
[1721724596350,2.1040048,67036.0,67035.0,0.29835]
[1721724596548,2.1040048,67036.0,67035.0,0.29935]
[1721724596549,2.1050048,67036.0,67035.0,0.29935]
[1721724596959,2.1050048,67036.0,67035.0,0.30035]
[1721724598766,1.96524517,67036.0,67035.0,0.30035]
[1721724598966,2.10684006,67036.0,67035.0,0.30035]
[1721724599551,2.10596118,67036.0,67035.0,0.30035]
[1721724601516,2.32236118,67036.0,67035.0,0.30035]
[1721724601912,2.07075363,67036.0,67035.0,0.30035]
[1721724602142,2.32337385,67036.0,67035.0,0.30035]
[1721724602689,2.12662896,67036.0,67035.0,0.30035]
[1721724602798,2.07662896,67036.0,67035.0,0.30035]
[1721724603207,2.12662896,67036.0,67035.0,0.30035]
[1721724603620,2.27264887,67036.0,67035.0,0.29835]
[1721724603859,2.32237385,67036.0,67035.0,0.29935]
[1721724604261,2.32237385,67036.0,67035.0,0.29835]
[1721724604665,2.32237385,67036.0,67035.0,0.29935]
[1721724604868,2.32337385,67036.0,67035.0,0.30035]
[1721724605086,2.32227133,67036.0,67035.0,0.30035]
[1721724605509,2.32127133,67036.0,67035.0,0.29935]
[1721724605714,1.01196851,67036.0,67035.0,0.30035]
[1721724605940,0.64702173,67036.0,67035.0,0.30035]
[1721724606153,0.62393474,67036.0,67035.0,0.30035]
[1721724606587,0.62293474,67036.0,67035.0,0.29935]
[1721724606786,0.62393474,67036.0,67035.0,0.29935]
[1721724606983,0.62393474,67036.0,67035.0,0.37875]
[1721724607696,1.22062874,67036.0,67035.0,0.29935]
[1721724607911,1.44751995,67036.0,67035.0,0.29935]
[1721724608132,1.31446174,67036.0,67035.0,0.29935]
[1721724608316,1.31446174,67036.0,67035.0,0.29835]
[1721724608317,1.74497932,67036.0,67035.0,0.29835]
[1721724608792,1.96862868,67036.0,67035.0,0.29835]
[1721724608993,2.12345665,67036.0,67035.0,0.29835]
[1721724609200,2.02493602,67036.0,67035.0,0.29835]
[1721724609685,2.07347743,67036.0,67035.0,0.29835]
[1721724609950,1.97262868,67036.0,67035.0,0.29835]
[1721724610151,1.99572713,67036.0,67035.0,0.29835]
[1721724610360,1.69898224,67036.0,67035.0,0.29835]
[1721724611204,1.56580874,67036.0,67035.0,0.29835]
[1721724611439,1.74876975,67036.0,67035.0,0.29835]
[1721724612227,2.32307015,67036.0,67035.0,0.29835]
[1721724612452,2.41216333,67036.0,67035.0,0.29835]
[1721724612675,2.51216333,67036.0,67035.0,0.29835]
[1721724612874,2.21381633,67036.0,67035.0,0.29835]
[1721724613323,1.91180469,67036.0,67035.0,0.29835]
[1721724613570,1.36332228,67036.0,67035.0,0.29935]
[1721724613816,1.52721299,67036.0,67035.0,0.29935]
[1721724614045,1.16386599,67036.0,67035.0,0.29935]
[1721724614267,0.84741954,67036.0,67035.0,0.29935]
[1721724614532,0.94487227,67036.0,67035.0,0.29835]
[1721724614756,0.94487227,67036.0,67035.0,0.30035]
[1721724614757,0.95887227,67036.0,67035.0,0.30035]
[1721724614974,0.97187227,67036.0,67035.0,0.30035]
[1721724615196,0.97187227,67036.0,67035.0,0.29835]
[1721724615197,0.94487227,67036.0,67035.0,0.29835]
[1721724615678,0.94987227,67036.0,67035.0,0.29835]
[1721724616434,0.94987227,67036.0,67035.0,0.29935]
[1721724616435,0.95987227,67036.0,67035.0,0.29935]
[1721724616672,0.66152527,67036.0,67035.0,0.29935]
[1721724617511,0.52796774,67036.0,67035.0,0.29935]
[1721724617512,0.66124898,67036.0,67035.0,0.29935]
[1721724617726,0.95959598,67036.0,67035.0,0.29935]
[1721724618142,0.21372898,67036.0,67035.0,0.29935]
[1721724618350,0.21372898,67036.0,67035.0,0.29962502]
[1721724618351,0.34788727,67036.0,67035.0,0.29962502]
[1721724618554,0.32477798,67036.0,67035.0,0.29962502]
[1721724619874,0.47395098,67036.0,67035.0,0.29962502]
[1721724620237,0.77229798,67036.0,67035.0,0.29962502]
[1721724620482,0.77229798,67036.0,67035.0,0.29935]
[1721724620483,1.07064498,67036.0,67035.0,0.29935]
[1721724620720,1.13421133,67036.0,67035.0,0.29935]
[1721724620964,1.09402342,67036.0,67035.0,0.29935]
[1721724621229,1.07091133,67036.0,67035.0,0.29935]
[1721724621487,0.47421733,67036.0,67035.0,0.29935]
[1721724621723,0.77256433,67036.0,67035.0,0.29935]
[1721724622184,0.6384018,67036.0,67035.0,0.29935]
[1721724622428,0.3400548,67036.0,67035.0,0.29935]
[1721724622674,0.6384018,67036.0,67035.0,0.29935]
[1721724623611,0.52796774,67036.0,67035.0,0.29935]
[1721724623890,0.64046504,67036.0,67035.0,0.29935]
[1721724624200,0.34211804,67036.0,67035.0,0.29935]
[1721724624550,0.64046504,67036.0,67035.0,0.29935]
[1721724624797,0.77461439,67036.0,67035.0,0.29935]
[1721724625103,0.34211804,67036.0,67035.0,0.29935]
[1721724625376,0.34211804,67036.0,67035.0,1.65697293]
[1721724625377,0.19223333,67036.0,67035.0,1.65697293]
[1721724625604,0.02254112,67036.0,67035.0,1.65697293]
[1721724625820,0.06724381,67036.0,67035.0,1.35862193]
[1721724626037,0.06224381,67036.0,67035.0,1.35862193]
[1721724626247,0.05224381,67036.0,67035.0,1.35762193]
[1721724626477,0.05224381,67036.0,67035.0,1.65597293]
[1721724626681,0.00754112,67036.0,67035.0,1.65597293]
[1721724627096,0.00754112,67036.0,67035.0,1.66189693]
[1721724627513,0.00754112,67036.0,67035.0,1.35854593]
[1721724627514,0.01154112,67036.0,67035.0,1.35854593]
[1721724627714,0.01254112,67036.0,67035.0,1.36454593]
[1721724627917,0.00854112,67036.0,67035.0,1.36454593]
[1721724628331,0.00954112,67036.0,67035.0,1.37754593]
[1721724628747,0.00854112,67036.0,67035.0,1.36454593]
[1721724629234,0.00954112,67036.0,67035.0,1.37754593]
[1721724629439,0.01054112,67036.0,67035.0,1.68789693]
[1721724629675,0.00854112,67036.0,67035.0,1.66989693]
[1721724630117,0.00954112,67036.0,67035.0,1.68089693]
[1721724630330,0.00854112,67036.0,67035.0,1.37154593]
[1721724631214,0.00854112,67036.0,67035.0,1.66989693]
[1721724631458,0.00854112,67036.0,67035.0,1.66689693]
[1721724631669,0.00854112,67036.0,67035.0,1.67989693]
[1721724631670,0.00954112,67036.0,67035.0,1.67989693]
[1721724632140,0.00854112,67036.0,67035.0,1.66689693]
[1721724632549,0.00954112,67036.0,67035.0,1.38154593]
[1721724632996,0.00954112,67036.0,67035.0,1.67989693]
[1721724633618,0.00954112,67036.0,67035.0,1.38154593]
[1721724634035,0.00954112,67036.0,67035.0,1.67989693]
[1721724635237,0.00954112,67036.0,67035.0,1.97824793]
[1721724635450,0.00954112,67036.0,67035.0,1.77989693]
[1721724635925,0.00954112,67036.0,67035.0,2.07824793]
[1721724636145,0.00954112,67036.0,67035.0,2.17824793]
[1721724636362,0.00954112,67036.0,67035.0,2.58447708]
[1721724636363,0.00854112,67036.0,67035.0,2.58447708]
[1721724636583,0.002,67039.0,67035.0,2.58447708]
[1721724636584,0.002,67039.0,67038.0,1.39279602]
[1721724636788,0.002,67039.0,67038.0,2.60623408]
[1721724637430,0.002,67039.0,67038.0,2.65623408]
[1721724637638,0.002,67039.0,67038.0,2.60623408]
[1721724637850,0.002,67039.0,67038.0,2.53535593]
[1721724638719,0.002,67039.0,67038.0,2.59935593]
[1721724638927,0.002,67049.0,67048.0,1.24060002]
[1721724639164,0.002,67049.0,67048.0,2.00720293]
[1721724639371,0.002,67049.0,67048.0,2.15720293]
[1721724639582,0.002,67049.0,67048.0,2.20720293]
[1721724639831,0.002,67049.0,67048.0,2.27732992]
[1721724640039,0.00292379,67069.0,67049.0,1.63087502]
[1721724640040,0.44293655,67069.0,67049.0,1.63087502]
[1721724640251,0.44293655,67069.0,67049.0,2.26931192]
[1721724640671,0.002,67069.0,67049.0,2.56760092]
[1721724640890,0.002,67069.0,67058.0,1.44239502]
[1721724641100,0.002,67069.0,67068.0,0.44758102]
[1721724641310,0.002,67069.0,67068.0,2.09871293]
[1721724641515,0.002,67069.0,67068.0,2.04871293]
[1721724642410,0.002,67069.0,67068.0,1.75050893]
[1721724643049,0.002,67069.0,67068.0,1.15410093]
[1721724643262,0.002,67069.0,67068.0,0.54549493]
[1721724643510,0.002,67069.0,67068.0,0.69459693]
[1721724643792,0.002,67069.0,67068.0,1.00680093]
[1721724644007,0.002,67069.0,67068.0,1.58920893]
[1721724644243,0.002,67069.0,67068.0,1.29100493]
[1721724644450,0.002,67069.0,67068.0,1.30300493]
[1721724644666,0.002,67069.0,67068.0,1.29100493]
[1721724644874,0.002,67069.0,67068.0,1.32800493]
[1721724645133,0.002,67069.0,67068.0,1.34000493]
[1721724645346,0.002,67069.0,67068.0,1.32800493]
[1721724645569,0.002,67069.0,67068.0,1.31400493]
[1721724645786,0.002,67069.0,67068.0,1.32800493]
[1721724646285,0.002,67069.0,67068.0,1.31400493]
[1721724646503,0.002,67069.0,67068.0,1.02980093]
[1721724646746,0.002,67069.0,67068.0,1.04180093]
[1721724646967,0.002,67069.0,67068.0,0.73159693]
[1721724647479,0.002,67069.0,67068.0,0.74359693]
[1721724648427,0.002,67069.0,67068.0,1.34000493]
[1721724648667,0.002,67069.0,67068.0,1.41620493]
[1721724649594,0.002,67069.0,67068.0,1.71440893]
[1721724649840,0.002,67069.0,67068.0,1.77490893]
[1721724651025,0.002,67069.0,67068.0,2.07311293]
[1721724651692,0.002,67069.0,67068.0,1.77490893]
[1721724652119,0.002,67069.0,67068.0,1.71440893]
[1721724652554,0.002,67069.0,67068.0,1.01880093]
[1721724652789,0.002,67069.0,67068.0,1.31700493]
[1721724653210,0.002,67069.0,67068.0,1.01880093]
[1721724653955,0.002,67069.0,67068.0,1.04180093]
[1721724655120,0.002,67069.0,67068.0,1.34000493]
[1721724658330,0.002,67069.0,67068.0,1.31700493]
[1721724658576,0.1448,67069.0,67068.0,0.57149493]
[1721724659251,0.8903,67069.0,67068.0,0.3242]
[1721724660104,0.89114,67069.0,67068.0,0.2982]
[1721724660568,0.89214,67069.0,67068.0,0.3022]
[1721724660979,0.89214,67069.0,67068.0,0.2982]
[1721724661198,0.59694,67069.0,67068.0,0.2982]
[1721724661404,0.59694,67069.0,67068.0,0.2992]
[1721724661615,0.89514,67069.0,67068.0,0.2992]
[1721724661817,0.89465789,67069.0,67068.0,0.2992]
[1721724662646,1.01224901,67069.0,67068.0,0.2992]
[1721724663303,1.01224922,67069.0,67068.0,0.2992]
[1721724663515,1.31044922,67069.0,67068.0,0.2992]
[1721724664390,1.36826054,67069.0,67068.0,0.2992]
[1721724664603,1.76246054,67069.0,67068.0,0.2982]
[1721724664814,1.76246054,67069.0,67068.0,0.2992]
[1721724664815,1.81973817,67069.0,67068.0,0.2992]
[1721724665031,1.76846054,67069.0,67068.0,0.2992]
[1721724665230,1.76846054,67069.0,67068.0,0.2982]
[1721724665437,1.76846054,67069.0,67068.0,0.2992]
[1721724665438,1.52653817,67069.0,67068.0,0.2992]
[1721724665662,1.81796808,67069.0,67068.0,0.2992]
[1721724665877,2.12023628,67069.0,67068.0,0.2992]
[1721724666373,1.77335681,67069.0,67068.0,0.2992]